[Event "*** Titled Tuesday Blitz"]
[Site "Chess.com"]
[Date "2018.04.03"]
[Round "8"]
[White "julinha97"]
[Black "ajkom197"]
[Result "1-0"]
[WhiteElo "2243"]
[BlackElo "2392"]
[TimeControl "180+2"]
[EndTime "14:46:22 PDT"]
[Termination "julinha97 won by resignation"]

1. e4 {[%clk 0:03:01.9]} 1... c6 {[%clk 0:03:00.4]} 2. d4 {[%clk 0:03:02.6]}
2... d5 {[%clk 0:03:01.4]} 3. exd5 {[%clk 0:03:04.2]} 3... cxd5 {[%clk
0:03:03.2]} 4. c4 {[%clk 0:03:05.9]} 4... Nf6 {[%clk 0:03:03.7]} 5. Nc3 {[%clk
0:03:07.5]} 5... Nc6 {[%clk 0:03:04.7]} 6. Bg5 {[%clk 0:03:08.4]} 6... dxc4
{[%clk 0:03:05.5]} 7. Bxc4 {[%clk 0:03:06.5]} 7... h6 {[%clk 0:03:06.5]} 8. Bh4
{[%clk 0:02:31.6]} 8... e6 {[%clk 0:03:04.3]} 9. Nf3 {[%clk 0:02:22.7]} 9... Be7
{[%clk 0:03:04.6]} 10. O-O {[%clk 0:02:20]} 10... O-O {[%clk 0:03:03.5]} 11. Re1
{[%clk 0:02:19.3]} 11... b6 {[%clk 0:03:03.3]} 12. a3 {[%clk 0:02:16]} 12... Bb7
{[%clk 0:03:02.7]} 13. Qd3 {[%clk 0:02:15.2]} 13... Nh5 {[%clk 0:02:52]} 14. Bg3
{[%clk 0:02:14.1]} 14... Nxg3 {[%clk 0:02:41.7]} 15. hxg3 {[%clk 0:02:14.8]}
15... Bf6 {[%clk 0:02:42.7]} 16. Rad1 {[%clk 0:02:10.1]} 16... g6 {[%clk
0:02:27.1]} 17. Bxe6 {[%clk 0:01:50.7]} 17... fxe6 {[%clk 0:02:27.1]} 18. Qxg6+
{[%clk 0:01:51.4]} 18... Bg7 {[%clk 0:02:27.9]} 19. Rxe6 {[%clk 0:01:50.5]}
19... Rf6 {[%clk 0:02:25]} 20. Qg4 {[%clk 0:01:40.6]} 20... Qd7 {[%clk
0:02:12.1]} 21. d5 {[%clk 0:01:40.4]} 21... Rxe6 {[%clk 0:00:47]} 22. dxe6
{[%clk 0:01:34.2]} 22... Qe8 {[%clk 0:00:48.1]} 23. Nd5 {[%clk 0:01:33]} 23...
Qf8 {[%clk 0:00:43.3]} 24. Nh4 {[%clk 0:01:18.5]} 24... Ne5 {[%clk 0:00:40.8]}
25. Qh5 {[%clk 0:01:07.3]} 25... Bxd5 {[%clk 0:00:38]} 26. Rxd5 {[%clk
0:01:05.4]} 26... Qf6 {[%clk 0:00:38.5]} 27. f4 {[%clk 0:00:43.3]} 27... Nc6
{[%clk 0:00:34.2]} 28. Nf5 {[%clk 0:00:27.6]} 28... Qxe6 {[%clk 0:00:26]} 29.
Rd6 {[%clk 0:00:28.8]} 29... Qe1+ {[%clk 0:00:18.2]} 30. Kh2 {[%clk 0:00:30]}
30... Ne7 {[%clk 0:00:16.4]} 31. Nxh6+ {[%clk 0:00:21.5]} 31... Bxh6 {[%clk
0:00:15.2]} 32. Qxh6 {[%clk 0:00:22.3]} 32... Qxg3+ {[%clk 0:00:15.6]} 33. Kxg3
{[%clk 0:00:21.7]} 33... Nf5+ {[%clk 0:00:17.5]} 34. Kf2 {[%clk 0:00:23.1]}
34... Nxh6 {[%clk 0:00:18.4]} 35. Rxh6 {[%clk 0:00:24.7]} 35... Rc8 {[%clk
0:00:19.4]} 36. Re6 {[%clk 0:00:23.6]} 36... Rc4 {[%clk 0:00:17.8]} 37. Kf3
{[%clk 0:00:22.9]} 37... Kf7 {[%clk 0:00:18.9]} 38. Re2 {[%clk 0:00:22.5]} 38...
Kf6 {[%clk 0:00:19.5]} 39. g4 {[%clk 0:00:23.5]} 39... a5 {[%clk 0:00:20.7]} 40.
Rh2 {[%clk 0:00:24]} 40... b5 {[%clk 0:00:20.1]} 41. Rh6+ {[%clk 0:00:23.6]}
41... Kg7 {[%clk 0:00:19.2]} 42. Rb6 {[%clk 0:00:24.1]} 42... b4 {[%clk
0:00:19.8]} 43. axb4 {[%clk 0:00:24.6]} 43... axb4 {[%clk 0:00:21.7]} 44. g5
{[%clk 0:00:24.7]} 44... Kf7 {[%clk 0:00:22.5]} 45. Kg4 {[%clk 0:00:25.6]} 45...
Kg7 {[%clk 0:00:22.4]} 46. b3 {[%clk 0:00:20.5]} 46... Rd4 {[%clk 0:00:22.6]}
47. Kf5 {[%clk 0:00:19.7]} 47... Kf7 {[%clk 0:00:23.5]} 48. Rb7+ {[%clk
0:00:20.3]} 48... Ke8 {[%clk 0:00:24.3]} 49. Ke6 {[%clk 0:00:19.6]} 49... Re4+
{[%clk 0:00:23.8]} 50. Kf5 {[%clk 0:00:20.8]} 50... Rd4 {[%clk 0:00:24.5]} 51.
g6 {[%clk 0:00:22.2]} 51... Kf8 {[%clk 0:00:25.1]} 52. Kg5 {[%clk 0:00:22]}
52... Kg8 {[%clk 0:00:25.9]} 53. Kh6 {[%clk 0:00:19.9]} 53... Rd8 {[%clk
0:00:26.2]} 54. Rxb4 {[%clk 0:00:20.4]} 54... Kh8 {[%clk 0:00:26.8]} 55. Rb7
{[%clk 0:00:20.5]} 55... Kg8 {[%clk 0:00:27.7]} 56. f5 {[%clk 0:00:21.7]} 56...
Rc8 {[%clk 0:00:28.2]} 57. f6 {[%clk 0:00:21.4]} 1-0

[Event "*** Titled Tuesday Blitz"]
[Site "Chess.com"]
[Date "2018.04.03"]
[Round "8"]
[White "GMAkobianSTL"]
[Black "amintabatabaei"]
[Result "1-0"]
[WhiteElo "2670"]
[BlackElo "2649"]
[TimeControl "180+2"]
[EndTime "14:46:32 PDT"]
[Termination "GMAkobianSTL won by resignation"]

1. d4 {[%clk 0:03:01.9]} 1... e6 {[%clk 0:03:00.1]} 2. c4 {[%clk 0:03:02.4]}
2... b6 {[%clk 0:03:00.8]} 3. Nf3 {[%clk 0:03:01.2]} 3... Bb7 {[%clk 0:03:01.1]}
4. g3 {[%clk 0:03:02.1]} 4... Bb4+ {[%clk 0:02:56.4]} 5. Bd2 {[%clk 0:03:02.4]}
5... Bxf3 {[%clk 0:02:56.5]} 6. exf3 {[%clk 0:03:03]} 6... Bxd2+ {[%clk
0:02:57]} 7. Qxd2 {[%clk 0:03:03.6]} 7... Nf6 {[%clk 0:02:57.5]} 8. Bg2 {[%clk
0:03:04.1]} 8... d5 {[%clk 0:02:58.1]} 9. f4 {[%clk 0:03:03.7]} 9... Nc6 {[%clk
0:02:57.4]} 10. O-O {[%clk 0:03:02.6]} 10... O-O {[%clk 0:02:56.4]} 11. Nc3
{[%clk 0:02:57.5]} 11... Ne7 {[%clk 0:02:56.5]} 12. Rac1 {[%clk 0:02:53.8]}
12... Qd7 {[%clk 0:02:49.5]} 13. cxd5 {[%clk 0:02:46.1]} 13... Nexd5 {[%clk
0:02:48.9]} 14. Nxd5 {[%clk 0:02:46.5]} 14... Nxd5 {[%clk 0:02:50.8]} 15. Rc4
{[%clk 0:02:45.9]} 15... Rac8 {[%clk 0:02:20.1]} 16. Rfc1 {[%clk 0:02:41]} 16...
Ne7 {[%clk 0:02:19.9]} 17. Bb7 {[%clk 0:02:24.9]} 17... Rcd8 {[%clk 0:02:10]}
18. Rxc7 {[%clk 0:02:21.8]} 18... Qd6 {[%clk 0:02:11.5]} 19. Be4 {[%clk
0:02:10.5]} 19... Rd7 {[%clk 0:02:04.2]} 20. Qc2 {[%clk 0:01:50.7]} 20... g6
{[%clk 0:01:54.2]} 21. Rxd7 {[%clk 0:01:50.8]} 21... Qxd7 {[%clk 0:01:56.1]} 22.
Qc7 {[%clk 0:01:50.4]} 22... Rd8 {[%clk 0:01:56.2]} 23. Qxd7 {[%clk 0:01:27.1]}
23... Rxd7 {[%clk 0:01:58.1]} 24. Rc4 {[%clk 0:01:27.5]} 24... b5 {[%clk
0:01:49.3]} 25. Rb4 {[%clk 0:01:27.4]} 25... a6 {[%clk 0:01:47]} 26. a4 {[%clk
0:01:28]} 26... Nd5 {[%clk 0:01:41.8]} 27. Bxd5 {[%clk 0:01:26.7]} 27... Rxd5
{[%clk 0:01:43.7]} 28. axb5 {[%clk 0:01:24.2]} 28... axb5 {[%clk 0:01:45.6]} 29.
Kf1 {[%clk 0:01:16.8]} 29... Kg7 {[%clk 0:01:46.6]} 30. Ke2 {[%clk 0:01:17.8]}
30... Kf6 {[%clk 0:01:48.5]} 31. Kd3 {[%clk 0:01:18.6]} 31... Kf5 {[%clk
0:01:49.7]} 32. f3 {[%clk 0:01:19.7]} 32... h5 {[%clk 0:01:48.7]} 33. h4 {[%clk
0:01:18.9]} 33... f6 {[%clk 0:01:28]} 34. Kc3 {[%clk 0:00:52.2]} 34... g5 {[%clk
0:01:21.3]} 35. fxg5 {[%clk 0:00:51.1]} 35... fxg5 {[%clk 0:01:23.2]} 36. hxg5
{[%clk 0:00:49.2]} 36... Kxg5 {[%clk 0:01:25.1]} 37. Kd3 {[%clk 0:00:50]} 37...
h4 {[%clk 0:01:22.3]} 38. gxh4+ {[%clk 0:00:50.4]} 38... Kxh4 {[%clk 0:01:24.2]}
39. Ke4 {[%clk 0:00:48.5]} 39... Kg3 {[%clk 0:01:13.1]} 40. Rb3 {[%clk 0:00:49]}
40... Rf5 {[%clk 0:01:13.8]} 41. Rc3 {[%clk 0:00:44.1]} 41... b4 {[%clk
0:00:57.1]} 42. Rc4 {[%clk 0:00:33]} 42... Rf4+ {[%clk 0:00:40.3]} 43. Ke5
{[%clk 0:00:32.9]} 43... Rxf3 {[%clk 0:00:41.6]} 44. Rxb4 {[%clk 0:00:33.4]}
44... Re3+ {[%clk 0:00:41.7]} 45. Kd6 {[%clk 0:00:31.4]} 45... Re4 {[%clk
0:00:41.8]} 46. Kc5 {[%clk 0:00:25.5]} 46... Kf4 {[%clk 0:00:38.7]} 47. Rc4
{[%clk 0:00:26.5]} 47... Kf5 {[%clk 0:00:28.7]} 48. b4 {[%clk 0:00:26.8]} 48...
Kf6 {[%clk 0:00:27.3]} 49. b5 {[%clk 0:00:19.8]} 49... Ke7 {[%clk 0:00:27.6]}
50. Kc6 {[%clk 0:00:19.4]} 50... Kd8 {[%clk 0:00:18.5]} 51. b6 {[%clk
0:00:20.2]} 51... Re1 {[%clk 0:00:15.6]} 52. b7 {[%clk 0:00:16.2]} 52... Rb1
{[%clk 0:00:14.8]} 53. Rc5 {[%clk 0:00:13.6]} 53... Rb4 {[%clk 0:00:10.7]} 54.
d5 {[%clk 0:00:14.6]} 54... e5 {[%clk 0:00:04.7]} 55. d6 {[%clk 0:00:15.5]}
55... e4 {[%clk 0:00:05.5]} 56. Rb5 {[%clk 0:00:16.7]} 1-0

[Event "*** Titled Tuesday Blitz"]
[Site "Chess.com"]
[Date "2018.04.03"]
[Round "8"]
[White "Patzel09"]
[Black "ZapataCharlesS"]
[Result "1/2-1/2"]
[WhiteElo "2566"]
[BlackElo "2674"]
[TimeControl "180+2"]
[EndTime "14:46:59 PDT"]
[Termination "Game drawn by repetition"]

1. e4 {[%clk 0:02:58.4]} 1... e5 {[%clk 0:03:00.5]} 2. f4 {[%clk 0:02:59.4]}
2... Qh4+ {[%clk 0:02:58.3]} 3. g3 {[%clk 0:02:58]} 3... Qe7 {[%clk 0:03:00.2]}
4. Nc3 {[%clk 0:02:57.4]} 4... exf4 {[%clk 0:02:57.4]} 5. Bg2 {[%clk 0:02:56.8]}
5... fxg3 {[%clk 0:02:46.7]} 6. hxg3 {[%clk 0:02:55.9]} 6... Nf6 {[%clk
0:02:45.7]} 7. d4 {[%clk 0:02:54]} 7... d6 {[%clk 0:02:47]} 8. Bg5 {[%clk
0:02:52.6]} 8... c6 {[%clk 0:02:45]} 9. Qe2 {[%clk 0:02:51.5]} 9... Nbd7 {[%clk
0:02:41.4]} 10. O-O-O {[%clk 0:02:49.6]} 10... h6 {[%clk 0:02:42.6]} 11. Nf3
{[%clk 0:02:45.1]} 11... Rg8 {[%clk 0:02:40.5]} 12. Bd2 {[%clk 0:02:38]} 12...
d5 {[%clk 0:02:33.3]} 13. e5 {[%clk 0:02:37]} 13... Ng4 {[%clk 0:02:30.9]} 14.
Ne1 {[%clk 0:02:21.5]} 14... Nb6 {[%clk 0:02:23.7]} 15. Bf3 {[%clk 0:02:20.7]}
15... f5 {[%clk 0:02:20.9]} 16. Nd3 {[%clk 0:02:16.5]} 16... Be6 {[%clk
0:02:12.7]} 17. b3 {[%clk 0:01:51.7]} 17... O-O-O {[%clk 0:02:12.8]} 18. Kb2
{[%clk 0:01:51.5]} 18... g5 {[%clk 0:02:05.3]} 19. Nc5 {[%clk 0:01:44.3]} 19...
Kb8 {[%clk 0:01:58.8]} 20. a4 {[%clk 0:01:43.3]} 20... Bc8 {[%clk 0:01:52.2]}
21. a5 {[%clk 0:01:43.1]} 21... Nd7 {[%clk 0:01:52.6]} 22. Nxd7+ {[%clk
0:01:30.8]} 22... Qxd7 {[%clk 0:01:48]} 23. Rdf1 {[%clk 0:01:15.6]} 23... Qe8
{[%clk 0:01:40.7]} 24. Na4 {[%clk 0:01:13.7]} 24... Be6 {[%clk 0:01:37.6]} 25.
b4 {[%clk 0:01:12.3]} 25... h5 {[%clk 0:01:35.3]} 26. Nc5 {[%clk 0:01:10.9]}
26... Bc8 {[%clk 0:01:24.9]} 27. Ra1 {[%clk 0:01:11.9]} 27... Rg7 {[%clk
0:01:15.5]} 28. Ra3 {[%clk 0:01:07.1]} 28... Ka8 {[%clk 0:01:09.2]} 29. Rc1
{[%clk 0:00:57.2]} 29... h4 {[%clk 0:01:05.1]} 30. gxh4 {[%clk 0:00:54.8]} 30...
gxh4 {[%clk 0:01:07]} 31. a6 {[%clk 0:00:50.2]} 31... Bxc5 {[%clk 0:01:04.8]}
32. bxc5 {[%clk 0:00:51]} 32... h3 {[%clk 0:01:00.2]} 33. Rh1 {[%clk 0:00:46.2]}
33... Rh7 {[%clk 0:00:59.9]} 34. Bf4 {[%clk 0:00:44.5]} 34... bxa6 {[%clk
0:00:58.1]} 35. e6 {[%clk 0:00:38.8]} 35... Rb7+ {[%clk 0:00:51.3]} 36. Rb3
{[%clk 0:00:38.9]} 36... Rxb3+ {[%clk 0:00:50.8]} 37. Kxb3 {[%clk 0:00:39.6]}
37... Bxe6 {[%clk 0:00:44.9]} 38. Rxh3 {[%clk 0:00:40.2]} 38... Bc8 {[%clk
0:00:44.1]} 39. Rh7 {[%clk 0:00:38.8]} 39... Qxe2 {[%clk 0:00:42.5]} 40. Bxe2
{[%clk 0:00:40.7]} 40... Re8 {[%clk 0:00:44.2]} 41. Rc7 {[%clk 0:00:32]} 41...
Bb7 {[%clk 0:00:45.2]} 42. Bd3 {[%clk 0:00:31.2]} 42... Ne3 {[%clk 0:00:42.5]}
43. Kb4 {[%clk 0:00:27.2]} 43... Ng2 {[%clk 0:00:40.7]} 44. Be5 {[%clk
0:00:28.5]} 44... Ne1 {[%clk 0:00:38.9]} 45. Bxf5 {[%clk 0:00:28.1]} 45... Nf3
{[%clk 0:00:40.2]} 46. Bg7 {[%clk 0:00:27.2]} 46... Nd2 {[%clk 0:00:41.5]} 47.
Kc3 {[%clk 0:00:21.2]} 47... Nc4 {[%clk 0:00:38.2]} 48. Bd3 {[%clk 0:00:21.2]}
48... Re3 {[%clk 0:00:39.2]} 49. Kb3 {[%clk 0:00:20.2]} 49... a5 {[%clk
0:00:40]} 50. Ka2 {[%clk 0:00:19]} 50... Re8 {[%clk 0:00:32.8]} 51. Bxc4 {[%clk
0:00:19.8]} 51... dxc4 {[%clk 0:00:33.8]} 52. Ka3 {[%clk 0:00:19.2]} 52... Re2
{[%clk 0:00:34.6]} 53. d5 {[%clk 0:00:18.4]} 53... cxd5 {[%clk 0:00:35.1]} 54.
c6 {[%clk 0:00:20]} 54... Bxc6 {[%clk 0:00:34]} 55. Rxc6 {[%clk 0:00:21.6]}
55... Rxc2 {[%clk 0:00:35.5]} 56. Rc7 {[%clk 0:00:22.5]} 56... Kb8 {[%clk
0:00:33.3]} 57. Rd7 {[%clk 0:00:21.6]} 57... Rd2 {[%clk 0:00:34.5]} 58. Be5+
{[%clk 0:00:20.3]} 58... Kc8 {[%clk 0:00:36]} 59. Rxa7 {[%clk 0:00:20.7]} 59...
Re2 {[%clk 0:00:35.6]} 60. Bg7 {[%clk 0:00:19.5]} 60... Rd2 {[%clk 0:00:33.7]}
61. Rxa5 {[%clk 0:00:20.4]} 61... Kb7 {[%clk 0:00:33.8]} 62. Kb4 {[%clk
0:00:18.4]} 62... Kb6 {[%clk 0:00:35.3]} 63. Ra1 {[%clk 0:00:17]} 63... Rd3
{[%clk 0:00:36.5]} 64. Bc3 {[%clk 0:00:14.4]} 64... Kb7 {[%clk 0:00:37.6]} 65.
Rc1 {[%clk 0:00:12.7]} 65... Kc6 {[%clk 0:00:35.8]} 66. Ra1 {[%clk 0:00:13.9]}
66... Kb7 {[%clk 0:00:36.8]} 67. Rc1 {[%clk 0:00:13.8]} 67... Kc6 {[%clk
0:00:38.1]} 68. Ra1 {[%clk 0:00:12.9]} 68... Kb6 {[%clk 0:00:35.8]} 69. Rc1
{[%clk 0:00:12.7]} 69... Kc6 {[%clk 0:00:35.1]} 70. Ra1 {[%clk 0:00:12.4]}
1/2-1/2

[Event "*** Titled Tuesday Blitz"]
[Site "Chess.com"]
[Date "2018.04.03"]
[Round "8"]
[White "JSPrepz"]
[Black "FMAntonio"]
[Result "1-0"]
[WhiteElo "2590"]
[BlackElo "2399"]
[TimeControl "180+2"]
[EndTime "14:47:09 PDT"]
[Termination "JSPrepz won by resignation"]

1. e4 {[%clk 0:03:01.9]} 1... e6 {[%clk 0:02:59.1]} 2. d4 {[%clk 0:03:01]} 2...
d5 {[%clk 0:02:58.3]} 3. Nc3 {[%clk 0:02:48.5]} 3... Bb4 {[%clk 0:02:58.3]} 4.
e5 {[%clk 0:02:47.3]} 4... Ne7 {[%clk 0:02:57.6]} 5. Qg4 {[%clk 0:02:47.1]} 5...
c5 {[%clk 0:02:57.9]} 6. a3 {[%clk 0:02:42.7]} 6... Qa5 {[%clk 0:02:58.2]} 7.
Ne2 {[%clk 0:02:15]} 7... cxd4 {[%clk 0:02:44.7]} 8. axb4 {[%clk 0:02:05.8]}
8... Qxa1 {[%clk 0:02:44.6]} 9. Nb5 {[%clk 0:02:06.9]} 9... O-O {[%clk
0:01:40.9]} 10. Nc7 {[%clk 0:02:06]} 10... Nbc6 {[%clk 0:01:35.5]} 11. Nxa8
{[%clk 0:02:07.1]} 11... Nxb4 {[%clk 0:01:36.5]} 12. Kd1 {[%clk 0:02:07.7]}
12... Bd7 {[%clk 0:01:29.1]} 13. Nxd4 {[%clk 0:01:53.2]} 13... Rxa8 {[%clk
0:01:25.7]} 14. Qg3 {[%clk 0:01:52.3]} 14... Rc8 {[%clk 0:01:11.3]} 15. Qa3
{[%clk 0:01:51.4]} 15... Qxa3 {[%clk 0:01:05.3]} 16. bxa3 {[%clk 0:01:53.1]}
16... Na2 {[%clk 0:00:59.2]} 17. Bb2 {[%clk 0:01:53]} 17... Nc3+ {[%clk
0:01:00.2]} 18. Ke1 {[%clk 0:01:52.1]} 18... Ng6 {[%clk 0:00:57.1]} 19. Kd2
{[%clk 0:01:37.1]} 19... Na4 {[%clk 0:00:53.4]} 20. Ba1 {[%clk 0:01:37.6]} 20...
Nxe5 {[%clk 0:00:53.3]} 21. Bd3 {[%clk 0:01:36.3]} 21... Nxd3 {[%clk 0:00:52.9]}
22. cxd3 {[%clk 0:01:38.2]} 22... e5 {[%clk 0:00:51.1]} 23. Nc2 {[%clk
0:01:34.5]} 23... d4 {[%clk 0:00:45.2]} 24. Re1 {[%clk 0:01:35.3]} 24... f6
{[%clk 0:00:45.8]} 25. f4 {[%clk 0:01:35.5]} 25... Nc5 {[%clk 0:00:38.9]} 26.
Rb1 {[%clk 0:01:07.5]} 26... Bf5 {[%clk 0:00:34.3]} 27. fxe5 {[%clk 0:01:05.7]}
27... fxe5 {[%clk 0:00:33.7]} 28. Ne1 {[%clk 0:01:04.5]} 28... Be6 {[%clk
0:00:30.7]} 29. Bb2 {[%clk 0:01:00.8]} 29... Nb3+ {[%clk 0:00:30.9]} 30. Ke2
{[%clk 0:01:02.2]} 30... Bd5 {[%clk 0:00:30.9]} 31. Ba1 {[%clk 0:00:40.9]} 31...
a5 {[%clk 0:00:28.4]} 32. a4 {[%clk 0:00:40.7]} 32... Kf7 {[%clk 0:00:21.5]} 33.
Bb2 {[%clk 0:00:34.5]} 33... Ke6 {[%clk 0:00:22.1]} 34. Ba3 {[%clk 0:00:35.8]}
34... Rc3 {[%clk 0:00:22.4]} 35. Bf8 {[%clk 0:00:36.2]} 35... Kf7 {[%clk
0:00:23]} 36. Ba3 {[%clk 0:00:34.7]} 36... e4 {[%clk 0:00:20.5]} 37. Bb2 {[%clk
0:00:31.1]} 37... exd3+ {[%clk 0:00:19.6]} 38. Nxd3 {[%clk 0:00:28.3]} 38...
Rc2+ {[%clk 0:00:19.9]} 39. Ke1 {[%clk 0:00:29.7]} 39... Rxg2 {[%clk 0:00:13.5]}
40. Bc1 {[%clk 0:00:23.5]} 40... Nxc1 {[%clk 0:00:09.5]} 41. Nxc1 {[%clk
0:00:24.6]} 41... Rxh2 {[%clk 0:00:06.2]} 42. Rb5 {[%clk 0:00:25.5]} 42... Bc6
{[%clk 0:00:06.6]} 43. Rxa5 {[%clk 0:00:26.5]} 43... Rc2 {[%clk 0:00:05.6]} 44.
Nd3 {[%clk 0:00:27.4]} 44... Ke7 {[%clk 0:00:06]} 45. Rg5 {[%clk 0:00:25.8]}
45... g6 {[%clk 0:00:06.8]} 46. a5 {[%clk 0:00:26]} 46... Kf6 {[%clk 0:00:07.2]}
47. Rg4 {[%clk 0:00:25.1]} 47... Rc4 {[%clk 0:00:07]} 48. Kd2 {[%clk 0:00:26.5]}
48... Ra4 {[%clk 0:00:07.6]} 49. Rf4+ {[%clk 0:00:25.8]} 49... Ke7 {[%clk
0:00:07.3]} 50. Rg4 {[%clk 0:00:23.1]} 50... Ra2+ {[%clk 0:00:07.4]} 51. Ke1
{[%clk 0:00:24.5]} 51... Rxa5 {[%clk 0:00:06.6]} 52. Rxd4 {[%clk 0:00:25.3]}
52... Rd5 {[%clk 0:00:07.4]} 53. Re4+ {[%clk 0:00:26.7]} 53... Kf6 {[%clk
0:00:07.1]} 54. Re3 {[%clk 0:00:19.6]} 54... Bb5 {[%clk 0:00:06.3]} 55. Nf2
{[%clk 0:00:20.9]} 55... Re5 {[%clk 0:00:06.9]} 56. Ng4+ {[%clk 0:00:22.2]}
56... Kf5 {[%clk 0:00:05.2]} 57. Rxe5+ {[%clk 0:00:23.6]} 57... Kxg4 {[%clk
0:00:05]} 58. Rxb5 {[%clk 0:00:25.5]} 58... h5 {[%clk 0:00:05.3]} 59. Kf2 {[%clk
0:00:26.9]} 59... g5 {[%clk 0:00:04.7]} 60. Kg2 {[%clk 0:00:26.8]} 60... Kf4
{[%clk 0:00:06]} 61. Rb4+ {[%clk 0:00:26.8]} 61... Ke3 {[%clk 0:00:06.8]} 62.
Rxb7 {[%clk 0:00:28.7]} 62... g4 {[%clk 0:00:06.2]} 63. Kg3 {[%clk 0:00:28.4]}
63... Ke4 {[%clk 0:00:06.6]} 64. Rh7 {[%clk 0:00:28.6]} 1-0

[Event "*** Titled Tuesday Blitz"]
[Site "Chess.com"]
[Date "2018.04.03"]
[Round "8"]
[White "ahmadzada13"]
[Black "Chesscoach_Golichenko"]
[Result "0-1"]
[WhiteElo "2586"]
[BlackElo "2498"]
[TimeControl "180+2"]
[EndTime "14:47:32 PDT"]
[Termination "Chesscoach_Golichenko won by resignation"]

1. e4 {[%clk 0:03:01.9]} 1... c5 {[%clk 0:03:00.6]} 2. Nf3 {[%clk 0:03:02.7]}
2... d6 {[%clk 0:03:02]} 3. d4 {[%clk 0:03:02.5]} 3... cxd4 {[%clk 0:03:03.9]}
4. Nxd4 {[%clk 0:03:03.6]} 4... Nf6 {[%clk 0:03:05.4]} 5. Nc3 {[%clk 0:03:04.6]}
5... a6 {[%clk 0:03:06.4]} 6. Bc4 {[%clk 0:03:05.6]} 6... e6 {[%clk 0:03:07.3]}
7. Bb3 {[%clk 0:03:06.9]} 7... b5 {[%clk 0:03:08.1]} 8. O-O {[%clk 0:03:07.3]}
8... Bb7 {[%clk 0:03:09.2]} 9. Re1 {[%clk 0:03:06.2]} 9... Nbd7 {[%clk
0:03:07.7]} 10. Bg5 {[%clk 0:03:06.3]} 10... Nc5 {[%clk 0:03:04.3]} 11. f4
{[%clk 0:03:05.3]} 11... Be7 {[%clk 0:03:02.4]} 12. a3 {[%clk 0:03:02.2]} 12...
O-O {[%clk 0:02:59.7]} 13. Qf3 {[%clk 0:02:45.9]} 13... h6 {[%clk 0:02:53.7]}
14. Bh4 {[%clk 0:02:44.8]} 14... Nfd7 {[%clk 0:01:51.6]} 15. Bxe7 {[%clk
0:02:42.5]} 15... Qxe7 {[%clk 0:01:53.5]} 16. Rad1 {[%clk 0:02:38.3]} 16... Rac8
{[%clk 0:01:46.3]} 17. Rd2 {[%clk 0:02:37.6]} 17... Rfd8 {[%clk 0:01:46.1]} 18.
Qg3 {[%clk 0:02:32.2]} 18... Nf6 {[%clk 0:01:25.8]} 19. Rde2 {[%clk 0:02:30.6]}
19... d5 {[%clk 0:01:13.8]} 20. exd5 {[%clk 0:02:19.9]} 20... Nxb3 {[%clk
0:01:11.6]} 21. cxb3 {[%clk 0:02:00.8]} 21... Nxd5 {[%clk 0:01:06.9]} 22. b4
{[%clk 0:01:49.1]} 22... Nxb4 {[%clk 0:00:21.4]} 23. Nxe6 {[%clk 0:01:40.6]}
23... fxe6 {[%clk 0:00:21.7]} 24. axb4 {[%clk 0:01:40.3]} 24... Qxb4 {[%clk
0:00:22.3]} 25. h3 {[%clk 0:01:25.3]} 25... Rf8 {[%clk 0:00:14]} 26. Rxe6 {[%clk
0:01:17.7]} 26... Qxf4 {[%clk 0:00:14.3]} 27. Qxf4 {[%clk 0:01:07.9]} 27... Rxf4
{[%clk 0:00:16.2]} 28. Re7 {[%clk 0:01:09.1]} 28... Rf7 {[%clk 0:00:17]} 29.
R7e6 {[%clk 0:01:04.5]} 29... Rcf8 {[%clk 0:00:12.3]} 30. Rb6 {[%clk 0:01:02]}
30... Rc7 {[%clk 0:00:11.7]} 31. Ree6 {[%clk 0:00:55.9]} 31... Rd8 {[%clk
0:00:08.3]} 32. Re2 {[%clk 0:00:50.8]} 32... Kh7 {[%clk 0:00:08.7]} 33. Kh2
{[%clk 0:00:50.5]} 33... Rdd7 {[%clk 0:00:09.8]} 34. Kg1 {[%clk 0:00:50.8]}
34... Re7 {[%clk 0:00:10.9]} 35. Rd2 {[%clk 0:00:43.8]} 35... Red7 {[%clk
0:00:11.5]} 36. Re2 {[%clk 0:00:43.4]} 36... Rc6 {[%clk 0:00:12.5]} 37. Rxc6
{[%clk 0:00:36.3]} 37... Bxc6 {[%clk 0:00:14.4]} 38. Re6 {[%clk 0:00:37.8]}
38... Bb7 {[%clk 0:00:15.2]} 39. Rb6 {[%clk 0:00:38.6]} 39... Kg8 {[%clk
0:00:16.3]} 40. Kf2 {[%clk 0:00:35.5]} 40... Kf7 {[%clk 0:00:17.3]} 41. g3
{[%clk 0:00:36.2]} 41... Ke7 {[%clk 0:00:17.7]} 42. Ke3 {[%clk 0:00:37.4]} 42...
Kd8 {[%clk 0:00:18.9]} 43. Rg6 {[%clk 0:00:37.6]} 43... Re7+ {[%clk 0:00:18.2]}
44. Kd4 {[%clk 0:00:36.8]} 44... b4 {[%clk 0:00:18.3]} 45. Na4 {[%clk 0:00:37]}
45... Re4+ {[%clk 0:00:13.4]} 46. Kc5 {[%clk 0:00:37]} 46... Re5+ {[%clk
0:00:08.3]} 47. Kb6 {[%clk 0:00:22.6]} 47... Rb5+ {[%clk 0:00:08.1]} 48. Ka7
{[%clk 0:00:23.8]} 48... Be4 {[%clk 0:00:08.3]} 49. Rxg7 {[%clk 0:00:22.8]}
49... Ke8 {[%clk 0:00:09.6]} 50. Kxa6 {[%clk 0:00:21.9]} 50... Bd3 {[%clk
0:00:10.8]} 51. Ka7 {[%clk 0:00:20.7]} 51... Ra5+ {[%clk 0:00:11.9]} 52. Kb6
{[%clk 0:00:21.9]} 52... Rxa4 {[%clk 0:00:13.8]} 53. Rg4 {[%clk 0:00:22.3]}
53... Bc2 {[%clk 0:00:13.6]} 54. Kc5 {[%clk 0:00:22.1]} 54... Bd1 {[%clk
0:00:12.1]} 55. Rxb4 {[%clk 0:00:21.8]} 55... Rxb4 {[%clk 0:00:13.1]} 56. Kxb4
{[%clk 0:00:23.4]} 56... Bf3 {[%clk 0:00:14.2]} 57. Kc5 {[%clk 0:00:24]} 57...
Bg2 {[%clk 0:00:15.4]} 58. h4 {[%clk 0:00:24.5]} 58... h5 {[%clk 0:00:16.7]} 59.
b4 {[%clk 0:00:25.6]} 59... Kd7 {[%clk 0:00:17.3]} 60. Kd4 {[%clk 0:00:25]}
60... Bf3 {[%clk 0:00:16.6]} 61. Ke3 {[%clk 0:00:24.4]} 61... Bg4 {[%clk
0:00:16.7]} 62. Kd4 {[%clk 0:00:25.2]} 62... Kc6 {[%clk 0:00:18]} 63. Kc3 {[%clk
0:00:26]} 63... Kb5 {[%clk 0:00:18.9]} 64. Kb3 {[%clk 0:00:27.2]} 64... Bf5
{[%clk 0:00:18.7]} 65. Kc3 {[%clk 0:00:28.3]} 65... Be6 {[%clk 0:00:19.8]} 66.
Kd4 {[%clk 0:00:28.2]} 66... Kxb4 {[%clk 0:00:20.8]} 67. Ke3 {[%clk 0:00:29]}
67... Kc3 {[%clk 0:00:21.3]} 68. Kf4 {[%clk 0:00:30.8]} 68... Kd4 {[%clk
0:00:21.9]} 69. Kg5 {[%clk 0:00:32.2]} 69... Bg4 {[%clk 0:00:22.1]} 70. Kf4
{[%clk 0:00:33.5]} 70... Kd3 {[%clk 0:00:23.5]} 71. Kg5 {[%clk 0:00:34.3]} 71...
Ke3 {[%clk 0:00:24.9]} 0-1